bitfinex/quotes_ETHUSD_20240607
["timestamp","ask_amount","ask_price","bid_price","bid_amount"]
[1717800221605,0.721,3689.8,3689.5,3.26036]
[1717800221791,0.12391535,3689.6,3689.5,3.26036]
[1717800221998,0.721,3689.8,3689.5,3.26036]
[1717800222205,0.12391535,3689.6,3689.5,3.26036]
[1717800222404,0.721,3689.8,3689.5,3.26036]
[1717800222617,0.12391535,3689.6,3689.5,3.26036]
[1717800222787,0.721,3689.8,3689.5,3.26036]
[1717800222994,0.12391535,3689.6,3689.5,3.26036]
[1717800223207,0.721,3689.8,3689.5,3.26036]
[1717800223404,0.12391535,3689.6,3689.5,3.26036]
[1717800223608,0.721,3689.8,3689.5,3.26036]
[1717800223822,0.12391535,3689.6,3689.5,3.26036]
[1717800224122,0.12389352,3689.6,3689.5,3.26036]
[1717800224332,0.721,3689.8,3689.5,3.26036]
[1717800224615,0.12389352,3689.6,3689.5,3.26036]
[1717800224780,0.721,3689.8,3689.5,3.26036]
[1717800224984,0.12389352,3689.6,3689.5,3.26036]
[1717800225183,0.721,3689.8,3689.5,3.26036]
[1717800225405,0.12389352,3689.6,3689.5,3.26036]
[1717800225634,0.721,3689.8,3689.5,3.26036]
[1717800226227,0.12390954,3689.7,3689.5,3.26036]
[1717800226529,0.721,3689.8,3689.5,3.26036]
[1717800226696,0.12389352,3689.6,3689.5,3.26036]
[1717800226896,0.721,3689.8,3689.5,3.26036]
[1717800227095,0.12389352,3689.6,3689.5,3.26036]
[1717800227296,0.721,3689.8,3689.5,3.26036]
[1717800227533,0.12389352,3689.6,3689.5,3.26036]
[1717800227728,0.721,3689.8,3689.5,3.26036]
[1717800227936,0.12389109,3689.6,3689.5,3.26036]
[1717800228140,0.721,3689.8,3689.5,3.26036]
[1717800228328,0.12389109,3689.6,3689.5,3.26036]
[1717800228625,0.721,3689.8,3689.5,3.26036]
[1717800228823,0.12389109,3689.6,3689.5,3.26036]
[1717800229025,0.721,3689.8,3689.5,3.26036]
[1717800229233,0.12389109,3689.6,3689.5,3.26036]
[1717800229732,0.721,3689.8,3689.5,3.26036]
[1717800229937,0.12389109,3689.6,3689.5,3.26036]
[1717800230121,0.721,3689.8,3689.5,3.26036]
[1717800230320,0.12389109,3689.6,3689.5,3.26036]
[1717800230636,0.721,3689.8,3689.5,3.26036]
[1717800230835,0.12389109,3689.6,3689.5,3.26036]
[1717800231037,0.721,3689.8,3689.5,3.26036]
[1717800231240,0.12389109,3689.6,3689.5,3.26036]
[1717800231455,0.721,3689.8,3689.5,3.26036]
[1717800231912,0.12390711,3689.7,3689.5,3.26036]
[1717800232112,0.721,3689.8,3689.5,3.26036]
[1717800232438,0.12389109,3689.6,3689.5,3.26036]
[1717800232615,2.4878,3689.9,3689.5,3.26036]
[1717800232818,0.12392065,3689.6,3689.5,3.26036]
[1717800233042,2.4878,3689.9,3689.5,3.26036]
[1717800233207,0.12388517,3689.6,3689.5,3.26036]
[1717800233402,2.4878,3689.9,3689.5,3.26036]
[1717800233603,0.12389109,3689.6,3689.5,3.26036]
[1717800233811,2.4878,3689.9,3689.5,3.26036]
[1717800234011,0.12388517,3689.6,3689.5,3.26036]
[1717800234241,2.4878,3689.9,3689.5,3.26036]
[1717800234409,2.344,3689.5,3689.1,2.71064]
[1717800234614,0.721,3689.2,3689.1,2.71064]
[1717800234914,0.84482107,3689.2,3689.1,2.71064]
[1717800235614,3.18882107,3689.2,3689.1,2.71064]
[1717800236207,3.18882107,3689.2,3688.7,2.71095]
[1717800236533,3.18882107,3689.2,3688.8,0.55]
[1717800238048,0.721,3688.9,3688.7,2.71095]
[1717800238371,0.11931652,3688.8,3688.7,2.71095]
[1717800238665,0.11931652,3688.8,3688.7,3.26095]
[1717800239427,0.721,3689.1,3688.7,3.26095]
[1717800239905,0.11934857,3689.0,3688.7,3.26095]
[1717800243564,0.11934857,3689.0,3688.7,2.71095]
[1717800243738,0.721,3688.9,3688.7,2.71095]
[1717800243939,0.11929354,3688.8,3688.7,2.71095]
[1717800244930,0.721,3689.0,3688.7,2.71095]
[1717800245128,0.11930956,3688.9,3688.7,2.71095]
[1717800246261,0.721,3688.8,3688.7,2.71095]
[1717800246573,0.11936604,3688.8,3688.7,2.71095]
[1717800246731,0.721,3689.0,3688.7,2.71095]
[1717800246931,0.11938207,3688.9,3688.7,2.71095]
[1717800252062,0.84038207,3688.9,3688.7,2.71095]
[1717800252260,0.721,3688.9,3688.7,2.71095]
[1717800252568,0.11932217,3688.8,3688.7,2.71095]
[1717800253655,0.721,3689.1,3688.7,2.71095]
[1717800253993,0.11938473,3689.0,3688.7,2.71095]
[1717800256391,0.721,3689.2,3688.7,3.215195]
[1717800256676,0.11538422,3688.9,3688.7,3.215195]
[1717800256975,0.721,3689.3,3688.9,2.71079]
[1717800257273,0.721,3689.3,3688.9,5.04229]
[1717800258672,2.317,3689.9,3689.3,2.7105]
[1717800258978,0.721,3689.6,3689.3,2.7105]
[1717800260793,0.721,3689.4,3689.3,2.7105]
[1717800261453,0.721,3689.4,3688.9,2.7108]
[1717800261776,0.721,3689.0,3688.5,2.7111]
[1717800262142,2.317,3689.5,3688.5,2.7111]
[1717800262452,0.721,3688.9,3688.5,2.7111]
[1717800263062,0.721,3688.9,3688.6,0.55]
[1717800263467,0.11491031,3688.8,3688.6,0.55]
[1717800264280,0.721,3689.0,3688.6,0.55]
[1717800264576,0.11492634,3688.9,3688.7,0.32611]
[1717800264879,0.11492634,3688.9,3688.6,0.55]
[1717800268189,0.11488526,3688.8,3688.6,0.55]
[1717800268482,0.721,3689.0,3688.6,0.55]
[1717800268651,0.11486923,3688.7,3688.6,1.10926]
[1717800268851,0.721,3689.2,3688.7,2.71094]
[1717800269361,0.11495042,3689.1,3688.7,2.71094]
[1717800269675,0.11495042,3689.1,3688.7,3.09296]
[1717800274991,0.11495042,3689.1,3688.7,5.43866]
[1717800276281,0.721,3689.2,3688.7,5.43866]
[1717800276650,0.11498418,3689.1,3688.7,5.43866]
[1717800277099,0.721,3689.4,3688.9,2.71083]
[1717800277470,0.115026,3689.3,3688.9,2.71083]
[1717800279263,0.721,3689.5,3688.9,2.71083]
[1717800279987,0.11504936,3689.4,3689.1,5.05635]
[1717800280196,0.721,3689.6,3689.1,5.05635]
[1717800280398,0.11506538,3689.5,3689.2,0.55]
[1717800282301,0.721,3689.6,3689.2,0.55]
[1717800282915,0.11508245,3689.5,3689.2,0.55]
[1717800284784,0.721,3689.7,3689.2,0.55]
[1717800284992,0.1150729,3689.6,3689.3,2.71052]
[1717800285191,0.1150729,3689.6,3689.4,3.221752]
[1717800285499,0.721,3690.0,3689.4,3.221752]
[1717800285667,0.11505197,3689.5,3689.4,5.932212]
[1717800285874,0.58616468,3690.5,3689.4,2.98990666]
[1717800286207,0.11125534,3690.4,3689.7,2.3457]
[1717800286371,0.721,3690.6,3690.1,2.7099]
[1717800286891,0.721,3690.4,3690.1,2.7099]
[1717800287200,0.11004332,3690.3,3690.2,0.55]
[1717800292406,0.11004332,3690.3,3690.2,0.87599]
[1717800295315,0.11004332,3690.3,3690.2,0.55]
[1717800303216,0.11004332,3690.3,3689.7,5.05592]
[1717800303392,0.11004332,3690.3,3689.7,2.71022]
[1717800303393,0.721,3690.2,3689.7,2.71022]
[1717800303630,0.721,3690.2,3689.8,0.55]
[1717800303826,0.09891642,3690.1,3689.8,0.55]
[1717800304032,0.09891642,3690.1,3689.8,0.90592107]
[1717800309424,0.09891642,3690.1,3689.7,2.71022]
[1717800309425,0.721,3689.9,3689.7,2.71022]
[1717800309628,0.09888802,3689.8,3689.3,2.71049]
[1717800309828,0.721,3689.9,3689.3,2.71049]
[1717800310034,0.721,3689.9,3689.3,3.206949]
[1717800310262,0.721,3689.7,3689.3,3.206949]
[1717800310571,3.0805,3689.5,3688.9,2.7108]
[1717800310711,0.721,3689.3,3689.0,0.27108]
[1717800310917,0.721,3689.3,3688.9,2.7108]
[1717800311116,0.09878203,3689.2,3688.9,2.7108]
[1717800311531,0.721,3689.3,3688.9,2.7108]
[1717800311755,0.0987365,3689.1,3688.9,2.7108]
[1717800311983,0.721,3689.3,3688.9,2.7108]
[1717800312158,0.09541861,3689.0,3688.9,2.7108]
[1717800312357,0.721,3689.3,3688.9,2.7108]
[1717800312560,0.09541861,3689.0,3688.9,2.7108]
[1717800312748,0.721,3689.3,3688.9,2.7108]
[1717800312949,0.09541861,3689.0,3688.9,2.7108]
[1717800313125,0.721,3689.3,3688.9,2.7108]
[1717800313457,0.721,3689.3,3689.0,0.55]
[1717800313636,0.09544476,3689.2,3689.0,0.55]
[1717800313833,0.721,3689.3,3689.0,0.55]
[1717800314064,0.09544476,3689.2,3689.0,0.55]
[1717800314223,0.721,3689.3,3689.0,0.55]
[1717800314424,0.09544476,3689.2,3689.0,0.55]
[1717800314648,0.721,3689.3,3689.0,0.55]
[1717800314961,0.09544476,3689.2,3689.0,0.55]
[1717800315323,0.721,3689.3,3689.0,0.55]
[1717800315521,0.09545431,3689.1,3689.0,0.55]
[1717800315800,0.721,3689.3,3689.0,0.55]
[1717800316137,0.09547034,3689.2,3689.0,0.55]
[1717800316542,0.721,3689.3,3689.0,0.55]
[1717800316778,0.09545431,3689.1,3689.0,0.55]
[1717800316981,0.721,3689.3,3689.0,0.55]
[1717800317284,0.09545431,3689.1,3689.0,0.55]
[1717800317483,0.721,3689.3,3689.0,0.55]
[1717800317786,0.09544839,3689.1,3689.0,0.55]
[1717800318281,0.721,3689.3,3689.0,0.55]
[1717800318475,0.09546442,3689.2,3689.0,0.55]
[1717800318658,0.721,3689.3,3689.0,0.55]
[1717800318853,0.09545259,3689.2,3689.0,0.55]
[1717800319054,0.721,3689.3,3689.0,0.55]
[1717800319266,0.09545259,3689.2,3689.0,0.55]
[1717800319571,0.721,3689.3,3689.0,0.55]
[1717800319769,0.09543656,3689.1,3689.0,0.55]
[1717800319962,0.721,3689.3,3689.0,0.55]
[1717800320157,0.09543656,3689.1,3689.0,0.55]
[1717800320364,0.721,3689.3,3689.0,0.55]
[1717800320884,0.09329259,3689.2,3689.0,0.55]
[1717800321264,0.721,3689.3,3689.0,0.55]
[1717800321591,0.09328668,3689.2,3689.0,0.55]
[1717800321949,0.721,3689.3,3689.0,0.55]
[1717800322151,0.09294613,3689.1,3689.0,0.55]
[1717800322353,0.721,3689.3,3689.0,0.55]
[1717800322554,0.09294613,3689.1,3689.0,0.55]
[1717800322885,0.09295204,3689.1,3689.0,0.55]
[1717800323096,0.721,3689.3,3689.0,0.55]
[1717800323575,0.09296807,3689.2,3689.0,0.55]
[1717800323883,0.721,3689.3,3689.0,0.55]
[1717800324087,0.092973,3689.2,3689.0,0.55]
[1717800324466,0.721,3689.3,3689.0,0.55]
[1717800324789,0.092973,3689.2,3689.0,0.55]
[1717800325286,0.09296881,3689.1,3689.0,0.55]
[1717800325586,0.721,3689.4,3689.0,0.55]
[1717800325787,0.09296881,3689.1,3689.0,0.55]
[1717800325961,0.721,3689.4,3689.0,0.55]
[1717800326163,0.09296881,3689.1,3689.0,0.55]
[1717800326375,0.721,3689.4,3689.0,0.55]
[1717800326575,0.09297472,3689.1,3689.0,0.55]
[1717800326782,0.721,3689.4,3689.0,0.55]
[1717800327004,0.09297226,3689.1,3689.0,0.55]
[1717800327183,0.721,3689.4,3689.0,0.55]
[1717800327368,0.09297226,3689.1,3689.0,0.55]
[1717800327568,0.721,3689.4,3689.0,0.55]
[1717800328190,0.09299578,3689.3,3689.0,0.55]
[1717800330099,0.09299578,3689.3,3689.1,2.71068]
[1717800330285,0.09299578,3689.3,3689.2,0.55]
[1717800331555,0.13285159,3689.3,3689.2,0.55]
[1717800334994,0.721,3689.5,3689.2,0.55]
[1717800335195,0.1328375,3689.3,3689.2,0.55]
[1717800335355,0.721,3689.6,3689.2,0.55]
[1717800335876,0.13287291,3689.5,3689.2,0.55]
[1717800337807,0.13287291,3689.5,3689.3,5.05584]
[1717800337972,0.13287291,3689.5,3689.4,0.55]
[1717800338306,0.58618266,3689.7,3689.5,2.71039]
[1717800338516,0.58618266,3689.7,3689.6,0.55]
[1717800338678,0.58609838,3689.7,3689.6,0.55]
[1717800341079,0.721,3689.9,3689.6,0.55]
[1717800341613,0.58609838,3690.2,3689.6,0.55]
[1717800341818,0.721,3690.0,3689.6,0.55]
[1717800343287,0.58609838,3690.2,3689.6,0.55]
[1717800343491,0.58609838,3690.2,3689.7,5.18613]
[1717800343714,0.58609838,3690.2,3689.8,0.55]
[1717800343888,0.58609838,3690.2,3689.9,2.71009]
[1717800344098,0.58606665,3690.2,3690.0,0.55]
[1717800344887,0.721,3690.1,3690.0,0.55]
[1717800347059,0.85285931,3690.1,3690.0,0.55]
[1717800348231,0.13185931,3690.1,3690.0,0.55]
[1717800349814,0.721,3690.3,3690.0,0.55]
[1717800349992,0.13186442,3690.2,3690.0,0.55]
[1717800350207,0.721,3690.3,3690.0,0.55]
[1717800350397,0.13186442,3690.2,3690.0,0.55]
[1717800350601,0.721,3690.3,3690.0,0.55]
[1717800350905,0.721,3690.1,3690.0,0.55]
[1717800351292,0.85285499,3690.1,3690.0,0.55]
[1717800355621,0.13185499,3690.1,3690.0,0.55]
[1717800355822,0.721,3690.1,3690.0,0.55]
[1717800356014,0.85282303,3690.1,3690.0,0.55]
[1717800356550,0.13182303,3690.1,3690.0,0.55]
[1717800356734,0.85282303,3690.1,3690.0,0.55]
[1717800356901,2.287,3690.4,3690.0,0.55]
[1717800357113,0.85285291,3690.3,3690.0,0.55]
[1717800357537,0.13185291,3690.3,3690.0,0.55]
[1717800357829,0.58609115,3690.5,3690.1,4.96175]
[1717800358029,0.13186785,3690.4,3690.2,0.55]
[1717800359363,0.721,3690.6,3690.2,0.55]
[1717800359564,0.13210612,3690.3,3690.2,0.55]
[1717800359762,0.721,3690.6,3690.2,0.55]
[1717800359955,0.13210612,3690.3,3690.2,0.55]
[1717800360156,0.721,3690.6,3690.2,0.55]
[1717800360324,0.1321006,3690.3,3690.2,0.55]
[1717800360523,0.721,3690.6,3690.2,0.55]
[1717800361051,0.13212497,3690.5,3690.2,0.55]
[1717800361556,0.13212497,3690.5,3690.3,2.7098]
[1717800361758,0.13212497,3690.5,3690.4,0.55]
[1717800361959,0.58601707,3690.9,3690.5,2.70965]
[1717800361960,1.30701707,3690.9,3690.5,2.70965]
[1717800362166,0.721,3690.7,3690.6,0.55]
[1717800363260,1.30701707,3690.9,3690.6,0.55]
[1717800364265,0.58601707,3690.9,3690.7,2.70951]
[1717800364433,7.43,3691.0,3690.7,2.70951]
[1717800364845,8.151,3691.0,3690.8,0.55]
[1717800365574,0.58592516,3690.9,3690.8,0.55]
[1717800367182,0.721,3691.0,3690.8,0.55]
[1717800367377,2.85891395,3691.3,3690.8,0.55]
[1717800367549,0.721,3691.0,3690.8,0.55]
[1717800368392,2.273,3691.3,3690.8,0.55]
[1717800368685,0.721,3691.0,3690.8,0.55]
[1717800370791,0.58591395,3691.4,3690.8,0.55]
[1717800370997,0.721,3691.0,3690.8,0.55]
[1717800372508,0.58591395,3691.4,3690.8,0.55]
[1717800372693,0.721,3691.0,3690.8,0.55]
[1717800373213,0.58591395,3691.4,3690.8,0.55]
[1717800373418,0.721,3691.1,3690.8,0.55]
[1717800377121,0.13259597,3691.0,3690.8,0.55]
[1717800378617,0.13259597,3691.0,3690.9,2.70936]
[1717800378796,0.13259597,3691.0,3690.9,3.25936]
[1717800379112,0.13263285,3691.0,3690.9,3.25936]
[1717800379315,0.721,3691.3,3690.9,3.813916]
[1717800379514,0.1326676,3691.2,3691.0,0.55]
[1717800379741,0.721,3691.3,3691.0,0.55]
[1717800379949,0.13265268,3691.1,3691.0,0.55]
[1717800380152,0.721,3691.3,3691.0,0.55]
[1717800380324,0.13275341,3691.1,3691.0,0.55]
[1717800380511,0.721,3691.3,3691.0,0.55]
[1717800380713,0.13276239,3691.2,3691.0,0.55]
[1717800380951,0.721,3691.3,3691.0,0.55]
[1717800381251,0.13275892,3691.1,3691.0,0.55]
[1717800381420,0.721,3691.3,3691.0,0.55]
[1717800381955,0.721,3691.1,3691.0,0.55]
[1717800382253,0.85384,3691.1,3691.0,0.55]
[1717800389002,0.13284,3691.1,3691.0,0.55]
[1717800389368,0.721,3691.3,3691.0,0.55]
[1717800389566,0.13278071,3691.1,3691.0,0.55]
[1717800389768,0.721,3691.3,3691.0,0.55]
[1717800389994,0.12837787,3691.1,3691.0,0.55]
[1717800390303,0.12838338,3691.1,3691.0,0.55]
[1717800390501,0.721,3691.3,3691.0,0.55]
[1717800390707,0.12839831,3691.2,3691.0,0.55]
[1717800390866,0.721,3691.3,3691.0,0.55]
[1717800391071,0.12839236,3691.2,3691.0,0.55]
[1717800391266,0.721,3691.3,3691.0,0.55]
[1717800391508,0.12839236,3691.2,3691.0,0.55]
[1717800391695,2.9371974,3691.6,3691.0,0.55]
[1717800391895,0.721,3691.3,3691.0,0.55]
[1717800392070,0.12839179,3691.2,3691.0,0.55]
[1717800392267,0.721,3691.3,3691.0,0.55]
[1717800392669,0.12840413,3691.2,3691.0,0.55]
[1717800392899,0.721,3691.3,3691.0,0.55]
[1717800393101,0.12840413,3691.2,3691.0,0.55]
[1717800393302,0.5858974,3691.5,3691.0,0.55]
[1717800393476,0.1283892,3691.1,3691.0,0.55]
[1717800393676,0.721,3691.3,3691.0,0.55]
[1717800393875,0.12840413,3691.2,3691.0,0.55]
[1717800394113,0.721,3691.3,3691.0,0.55]
[1717800394411,0.12840413,3691.2,3691.0,0.55]
[1717800394868,0.721,3691.3,3691.0,0.55]
[1717800395438,0.1284066,3691.2,3691.0,0.55]
[1717800395939,0.12839167,3691.1,3691.0,0.55]
[1717800396104,0.721,3691.4,3691.0,0.55]
[1717800396307,0.12841165,3691.3,3691.0,0.55]
[1717800399719,3.0723,3691.6,3691.0,0.55]
[1717800399948,0.12668606,3691.5,3691.0,0.55]
[1717800402109,0.71258346,3691.5,3691.0,0.55]
[1717800403059,0.12668606,3691.5,3691.0,0.55]
[1717800403411,0.71258346,3691.5,3691.0,0.55]
[1717800403945,0.12668606,3691.5,3691.1,2.70918]
[1717800404118,0.12668606,3691.5,3691.2,0.55]
[1717800404849,0.721,3691.6,3691.2,0.55]
[1717800405055,0.1267038,3691.4,3691.2,0.55]
[1717800405241,0.721,3691.6,3691.2,0.55]
[1717800405752,0.12669159,3691.5,3691.2,0.55]
[1717800407557,0.12669159,3691.5,3691.3,2.70907]
[1717800407770,0.12669159,3691.5,3691.4,0.55]
[1717800407963,0.5858974,3691.7,3691.4,0.55]
[1717800408145,0.12619711,3691.5,3691.4,0.55]
[1717800408344,0.5858974,3691.7,3691.4,0.55]
[1717800408549,2.3513,3691.9,3691.4,0.55]
[1717800408550,0.12621204,3691.6,3691.4,0.55]
[1717800408755,0.721,3691.8,3691.4,0.55]
[1717800408958,0.12622696,3691.7,3691.4,0.55]
[1717800409337,0.721,3691.8,3691.4,0.55]
[1717800409540,0.12622145,3691.7,3691.4,0.55]
[1717800409882,0.12620653,3691.6,3691.4,0.55]
[1717800410070,0.721,3691.8,3691.4,0.55]
[1717800410270,0.12622145,3691.7,3691.4,0.55]
[1717800410470,0.721,3691.8,3691.4,0.55]
[1717800410718,0.12622145,3691.7,3691.4,0.55]
[1717800410887,0.721,3691.8,3691.4,0.55]
[1717800411092,0.12622145,3691.7,3691.4,0.55]
[1717800411419,0.721,3691.8,3691.4,0.55]
[1717800411572,0.12620653,3691.6,3691.4,0.55]
[1717800411776,0.721,3691.8,3691.4,0.55]
[1717800411972,0.1261916,3691.5,3691.4,0.55]
[1717800412210,0.721,3691.8,3691.4,1.07253127]
[1717800412505,0.721,3691.8,3691.4,0.55]
[1717800412810,0.12622145,3691.7,3691.4,0.55]
[1717800413166,0.721,3691.8,3691.4,0.55]
[1717800413368,0.12620653,3691.6,3691.4,0.55]
[1717800413595,0.721,3691.8,3691.4,0.55]
[1717800413782,0.1261916,3691.5,3691.4,0.55]
[1717800413982,0.721,3691.8,3691.4,1.07253127]
[1717800414207,0.1261916,3691.5,3691.4,0.55]
[1717800414412,0.721,3691.8,3691.4,0.55]
[1717800414611,0.1261916,3691.5,3691.4,0.55]
[1717800414823,0.721,3691.8,3691.4,0.55]
[1717800415108,2.3513,3691.9,3691.4,0.55]
[1717800415310,0.12626571,3691.8,3691.4,0.55]
[1717800415690,0.84726571,3691.8,3691.4,1.07253127]
[1717800415994,0.12626571,3691.8,3691.4,1.07253127]
[1717800419321,0.12626571,3691.8,3691.4,0.55]
[1717800420630,0.721,3691.7,3691.4,0.55]
[1717800421135,0.12626061,3691.6,3691.4,0.55]
[1717800421703,0.721,3691.5,3690.9,5.18402]
[1717800421886,0.721,3691.3,3690.9,5.18402]
[1717800422091,0.12632926,3691.2,3690.9,5.18402]
[1717800422292,0.721,3691.3,3690.9,5.18402]
[1717800422506,0.12632926,3691.2,3690.9,5.18402]
[1717800422713,0.721,3691.3,3690.9,5.18402]
[1717800423046,0.12632926,3691.2,3691.0,0.55]
[1717800423413,0.721,3691.3,3691.0,0.55]
[1717800423800,0.12632926,3691.2,3691.0,0.55]
[1717800424312,0.721,3691.3,3691.0,0.55]
[1717800424528,0.12632926,3691.2,3691.0,0.55]
[1717800424717,0.721,3691.3,3691.0,0.55]
[1717800424942,0.12616462,3691.2,3691.1,2.70921]
[1717800425253,0.721,3691.5,3691.1,3.25921]
[1717800425427,0.721,3691.5,3691.2,0.55]
[1717800425634,0.1261451,3691.4,3691.2,0.55]
[1717800427557,0.1261451,3691.4,3691.3,2.70907]
[1717800427720,0.721,3691.6,3691.3,3.25907]
[1717800427923,2.3513,3691.9,3691.4,0.55]
[1717800427924,0.12611559,3691.5,3691.4,0.55]
[1717800428170,2.3513,3691.9,3691.4,0.55]
[1717800428176,0.721,3691.7,3691.4,0.55]
[1717800428349,0.12613052,3691.6,3691.4,0.55]
[1717800435086,0.12613052,3691.6,3691.5,2.70892]
[1717800435262,0.12613052,3691.6,3691.5,3.584812]
[1717800435468,2.3513,3691.9,3691.5,3.584812]
[1717800436098,0.12620726,3691.8,3691.7,2.70877]
[1717800436590,0.12620726,3691.8,3691.7,3.25877]
[1717800438205,0.12627639,3691.8,3691.7,3.25877]
[1717800438358,0.58574135,3692.1,3691.7,3.25877]
[1717800438554,0.12630623,3692.0,3691.9,2.70863]
[1717800438995,0.12630623,3692.0,3691.9,3.25863]
[1717800441800,0.58569734,3692.1,3691.9,3.25863]
[1717800442138,0.58569734,3692.1,3692.0,0.55]
[1717800442935,7.43,3692.2,3692.0,0.55]
[1717800443997,0.58570688,3692.1,3692.0,0.55]
[1717800446304,0.721,3692.3,3692.0,0.55]
[1717800448369,0.721,3692.2,3692.0,0.55]
[1717800448566,0.80157095,3692.5,3692.0,0.55]
[1717800448770,0.721,3692.2,3692.0,0.55]
[1717800450545,0.80157095,3692.5,3692.0,0.55]
[1717800450764,0.721,3692.2,3692.0,0.55]
[1717800452181,0.12632115,3692.1,3692.0,0.55]
[1717800455104,0.721,3692.3,3692.0,0.55]
[1717800455314,0.12634393,3692.1,3692.0,0.55]
[1717800455487,0.721,3692.3,3692.0,0.55]
[1717800455688,0.12634393,3692.1,3692.0,0.55]
[1717800455883,0.721,3692.3,3692.0,0.55]
[1717800456092,0.12634393,3692.1,3692.0,0.55]
[1717800456818,0.721,3692.3,3692.0,0.55]
[1717800456984,0.12633842,3692.1,3692.0,0.55]
[1717800457191,0.721,3692.3,3692.0,0.55]
[1717800457390,0.12635333,3692.2,3692.0,0.55]
[1717800457591,0.721,3692.3,3692.0,0.55]
[1717800457792,0.12635333,3692.2,3692.0,0.55]
[1717800458204,0.721,3692.3,3692.0,0.55]
[1717800458405,0.12635333,3692.2,3692.0,0.55]
[1717800458577,0.721,3692.3,3692.0,0.55]
[1717800458777,0.12635333,3692.2,3692.0,0.55]
[1717800459013,0.721,3692.3,3692.0,0.55]
[1717800459216,0.12635333,3692.2,3692.0,0.55]
[1717800459582,0.721,3692.3,3692.0,0.55]
[1717800459795,0.12635333,3692.2,3692.0,0.55]
[1717800460006,0.721,3692.3,3692.0,0.55]
[1717800460212,0.12635333,3692.2,3692.0,0.55]
[1717800460385,0.721,3692.3,3692.0,0.55]
[1717800460585,0.12635333,3692.2,3692.0,0.55]
[1717800461217,0.12633842,3692.1,3692.0,0.55]
[1717800461582,0.721,3692.3,3692.0,0.55]
[1717800461794,0.12649649,3692.2,3692.0,0.55]
[1717800461991,0.721,3692.3,3692.0,0.55]
[1717800462194,0.12649649,3692.2,3692.0,0.55]
[1717800462396,0.721,3692.3,3692.0,0.55]
[1717800462625,0.12649649,3692.2,3692.0,0.55]
[1717800462989,0.721,3692.3,3692.0,0.55]
[1717800463214,0.12649649,3692.2,3692.0,0.55]
[1717800463436,0.721,3692.3,3692.0,0.55]
[1717800463604,0.12648157,3692.1,3692.0,0.55]
[1717800463781,0.721,3692.3,3692.0,0.55]
[1717800463987,0.12649649,3692.2,3692.0,0.55]
[1717800464189,0.721,3692.3,3692.0,0.55]
[1717800464503,0.12649649,3692.2,3692.0,0.55]
[1717800464830,0.721,3692.3,3692.0,0.55]
[1717800465036,0.12648157,3692.1,3692.0,0.55]
[1717800465331,0.721,3692.3,3692.0,0.55]
[1717800465835,0.12649649,3692.2,3692.0,0.55]
[1717800466208,0.721,3692.3,3692.0,0.55]
[1717800466622,0.12649649,3692.2,3692.0,0.55]
[1717800466828,0.721,3692.3,3692.0,0.55]
[1717800466995,0.12647911,3692.1,3692.0,0.55]
[1717800467328,0.721,3692.3,3692.0,0.55]
[1717800467829,0.12649403,3692.2,3692.0,0.55]
[1717800468197,0.721,3692.3,3692.0,0.55]
[1717800468394,0.12649403,3692.2,3692.0,0.55]
[1717800468590,0.721,3692.3,3692.0,0.55]
[1717800468804,0.12649403,3692.2,3692.0,0.55]
[1717800469006,0.721,3692.3,3692.0,0.55]
[1717800469191,0.12649403,3692.2,3692.0,0.55]
[1717800469420,0.721,3692.3,3692.0,0.55]
[1717800469634,0.12649403,3692.2,3692.0,0.55]
[1717800470132,0.721,3692.3,3692.0,0.55]
[1717800470334,0.1264736,3692.1,3692.0,0.55]
[1717800470938,0.721,3692.3,3692.0,0.55]
[1717800471107,0.1264736,3692.1,3692.0,0.55]
[1717800471616,0.721,3692.3,3692.0,0.55]
[1717800471813,0.12648852,3692.2,3692.0,0.55]
[1717800472019,0.721,3692.3,3692.0,0.55]
[1717800472222,0.12648852,3692.2,3692.0,0.55]
[1717800472414,0.721,3692.3,3692.0,0.55]
[1717800472633,0.12648852,3692.2,3692.0,0.55]
[1717800473031,0.721,3692.3,3692.0,0.55]
[1717800473232,0.12648852,3692.2,3692.0,0.55]
[1717800473603,0.721,3692.3,3692.0,0.55]
[1717800473798,0.12648852,3692.2,3692.0,0.55]
[1717800474136,0.721,3692.3,3692.0,0.55]
[1717800474333,0.1264736,3692.1,3692.0,0.55]
[1717800474539,0.721,3692.3,3692.0,0.55]
[1717800474711,0.1264736,3692.1,3692.0,0.55]
[1717800474908,0.721,3692.3,3692.0,0.55]
[1717800475109,0.1264736,3692.1,3692.0,0.55]
[1717800475312,0.721,3692.3,3692.0,0.55]
[1717800475508,0.1264736,3692.1,3692.0,0.55]
[1717800475740,0.721,3692.3,3692.0,0.55]
[1717800475911,0.1264736,3692.1,3692.0,0.55]
[1717800476120,0.721,3692.3,3692.0,0.55]